{"text_format":"3","workbook":"xlsx","n_sheets":1,"sheets":["Лист1"],"not_rendered":{"defined_names":1},"read":"whole","date_system":"1900"}

{"sheet":"Лист1","index":0,"n_rows":245,"n_cols":5,"rows_kept":245,"merged":[[0,3,0,4],[2,1,2,4],[4,1,5,1],[4,2,5,2],[4,3,4,4],[7,1,18,1],[19,1,22,1],[23,1,26,1],[27,1,30,1],[31,1,34,1],[35,1,38,1],[39,1,47,1],[48,1,50,1],[51,1,53,1],[54,1,56,1],[57,1,60,1],[61,1,64,1],[65,1,67,1],[68,1,70,1],[71,1,75,1],[76,1,79,1],[80,1,85,1],[86,1,88,1],[89,1,91,1],[92,1,94,1],[95,1,97,1],[98,1,100,1],[101,1,103,1],[104,1,106,1],[107,1,110,1],[111,1,119,1],[120,1,124,1],[125,1,127,1],[128,1,130,1],[131,1,135,1],[136,1,150,1],[151,1,153,1],[154,1,156,1],[157,1,160,1],[161,1,163,1],[164,1,166,1],[167,1,169,1],[170,1,172,1],[173,1,175,1],[176,1,179,1],[180,1,184,1],[185,1,189,1],[190,1,194,1],[195,1,198,1],[199,1,202,1],[203,1,206,1],[207,1,210,1],[211,1,214,1],[215,1,219,1],[220,1,226,1],[227,1,230,1],[231,1,234,1],[235,1,237,1],[238,1,240,1]]}
[{"$nulls":3},"Таблица 1  к Приложению 3"]
[]
[null,"Информация об изменениях объемов финансирования и целевых показателей муниципальной программы города Усолье-Сибирское «Развитие жилищно-коммунального хозяйства» на 2019-2027 годы \nза  2025 год"]
[]
[null,"Наименование программы, подпрограммы,  основного мероприятия, мероприятия, проекта","Источники финансирования / Наименование целевого показателя","Предусмотренный объем финансирования (тыс. руб.) / Значение целевого показателя"]
[{"$nulls":3},"Редакция программы \nот 25.02.2025 № 319-па\n(на начало отчетного периода)","Редакция программы \nот 29.12.2025 № 2502-па\n(на конец отчетного периода)"]
[null,1,2,3,4]
[null,"Муниципальная программа города Усолье-Сибирское «Развитие жилищно-коммунального хозяйства» на 2019-2027 годы ","Всего",{"$f":"D9+D10+D11+D12","v":{"v":471124.91529000003,"d":"471,124.92"}},{"$f":"E9+E10+E11+E12","v":{"v":437265.65444,"d":"437,265.65"}}]
[null,null,"Бюджет города",{"$f":"D21+D33+D41+D82+D113+D138+D222","v":{"v":200951.29523999998,"d":"200,951.30"}},{"$f":"E21+E33+E41+E82+E113+E138+E222","v":{"v":186567.55749,"d":"186,567.56"}}]
[null,null,"Областной бюджет",{"$f":"D42+D83+D139+D223","v":{"v":270173.62005,"d":"270,173.62"}},{"$f":"E42+E83+E139+E223","v":{"v":240202.09695,"d":"240,202.10"}}]
[null,null,"Федеральный бюджет",{"$f":"D140","v":{"v":0,"d":"0.00"}},{"$f":"E140","v":{"v":9500,"d":"9,500.00"}}]
[null,null,"Целевые средства",{"$f":"D43+D141","v":{"v":0,"d":"0.00"}},{"$f":"E43+E141","v":{"v":996,"d":"996.00"}}]
[null,null,"Целевой показатель 1.                                                           Доля многоквартирных домов, в которых проведен капитальный ремонт общего имущества, от общего числа многоквартирных домов на территории города, требуемых капитального ремонта (%)",3.05,6.81]
[null,null,"Целевой показатель 2.                                     Общая площадь помещений многоквартирных домов муниципального жилищного фонда, в которых проведен капитальный и текущий ремонт (м2)                                                      ",{"v":733.8,"d":"733.80"},{"v":540.9,"d":"540.90"}]
[null,null,"Целевой показатель 3.                                           Доля протяженности дорог местного значения, не отвечающих нормативным требованиям, в общей протяженности дорог местного значения (%)                                                          ",88.98,90.72]
[null,null,"Целевой показатель 4.                             Протяженность содержания линий наружного освещения территории города (км)                                                       ",61.876,82.576]
[null,null,"Целевой показатель 5.                                      Объем потребления энергоресурсов муниципальными бюджетными учреждениями (т.у.т (тонн условного топлива))",3.612,3.612]
[null,null,"Целевой показатель 6.                                           Доля исполненных мероприятий по благоустройству территории города (%)",100,100]
[null,null,"Целевой показатель 8. \nДоля исполненных мероприятий по модернизации объектов водоснабжения, водоотведения и очистки сточных вод на территории города Усолье-Сибипрское (%)",0,0]
[null,"Подпрограмма № 1 «Капитальный ремонт общего имущества в многоквартирных домах, расположенных на территории города Усолье-Сибирское» на 2019-2027 годы","Всего",{"$f":"D21","v":{"v":5740.29308,"d":"5,740.29"}},{"$f":"E21","v":{"v":6727.18619,"d":"6,727.19"}}]
[null,null,"Бюджет города",{"$f":"D25+D29","v":{"v":5740.29308,"d":"5,740.29"}},{"$f":"E25+E29","v":{"v":6727.18619,"d":"6,727.19"}}]
[null,null,"Целевой показатель 1. \nКоличество многоквартирных домов, в которых проведен капитальный ремонт общего имущества (объект)",19,22]
[null,null,"Целевой показатель 2.\nОбщая площадь многоквартирных домов, в которых проведен капитальный ремонт общего имущества (м2)",{"v":45625.16,"d":"45,625.16"},{"v":77011.73,"d":"77,011.73"}]
[null,"Основное мероприятие 1.1. Обеспечение мероприятий по капитальному ремонту многоквартирных домов города, включенных в Региональную программу капитального ремонта общего имущества в многоквартирных домах на территории Иркутской области на 2014-2043 годы. ","Всего",{"$f":"D25","v":{"v":200,"d":"200.00"}},{"$f":"E25","v":{"v":200,"d":"200.00"}}]
[null,null,"Бюджет города",{"v":200,"d":"200.00"},{"v":200,"d":"200.00"}]
[null,null,"Целевой показатель 1. \nКоличество многоквартирных домов, в которых проведен капитальный ремонт общего имущества (объект)",19,22]
[null,null,"Целевой показатель 2.\nОбщая площадь многоквартирных домов, в которых проведен капитальный ремонт общего имущества (м2)",{"v":45625.16,"d":"45,625.16"},{"v":77011.73,"d":"77,011.73"}]
[null,"Основное мероприятие 1.2. Своевременная ежемесячная оплата взносов на капитальный ремонт многоквартирных домов в доле муниципальных жилых и нежилых помещений Региональному оператору.","Всего",{"$f":"D29","v":{"v":5540.29308,"d":"5,540.29"}},{"$f":"E29","v":{"v":6527.18619,"d":"6,527.19"}}]
[null,null,"Бюджет города",{"v":5540.29308,"d":"5,540.29"},{"v":6527.18619,"d":"6,527.19"}]
[null,null,"Целевой показатель 1. \nКоличество многоквартирных домов, в которых проведен капитальный ремонт общего имущества (объект)",19,22]
[null,null,"Целевой показатель 2.\nОбщая площадь многоквартирных домов, в которых проведен капитальный ремонт общего имущества (м2)",{"v":45625.16,"d":"45,625.16"},{"v":77011.73,"d":"77,011.73"}]
[null,"Подпрограмма № 2 «Капитальный и текущий ремонт муниципального жилищного фонда города Усолье – Сибирское» на 2019-2027 годы","Всего",{"$f":"D33","v":{"v":6827.86262,"d":"6,827.86"}},{"$f":"E33","v":{"v":5733.06236,"d":"5,733.06"}}]
[null,null,"Бюджет города",{"$f":"D37","v":{"v":6827.86262,"d":"6,827.86"}},{"$f":"E37","v":{"v":5733.06236,"d":"5,733.06"}}]
[null,null,"Целевой показатель 1. \nКоличество муниципальных жилых помещений, в которых проведен капитальный и текущий ремонт (шт)",27,15]
[null,null,"Целевой показатель 2. \nОбщая площадь помещений многоквартирных домов муниципального жилищного фонда, в которых проведен капитальный и текущий ремонт (м2)",{"v":733.8,"d":"733.80"},{"v":540.9,"d":"540.90"}]
[null,"Основное мероприятие 2.1. Капитальный и текущий ремонт помещений муниципального жилищного фонда.","Всего",{"$f":"D37","v":{"v":6827.86262,"d":"6,827.86"}},{"$f":"E37","v":{"v":5733.06236,"d":"5,733.06"}}]
[null,null,"Бюджет города",{"v":6827.86262,"d":"6,827.86"},{"v":5733.06236,"d":"5,733.06"}]
[null,null,"Целевой показатель 1. \nКоличество муниципальных жилых помещений, в которых проведен капитальный и текущий ремонт (шт)",27,15]
[null,null,"Целевой показатель 2. \nОбщая площадь помещений многоквартирных домов муниципального жилищного фонда, в которых проведен капитальный и текущий ремонт (м2)",{"v":733.8,"d":"733.80"},{"v":540.9,"d":"540.90"}]
[null,"Подпрограмма 3 «Развитие дорожного хозяйства города Усолье-Сибирское» на 2019-2027 годы","Всего",{"$f":"D41+D42","v":{"v":390121.21672,"d":"390,121.22"}},{"$f":"E41+E42+E43","v":{"v":349319.58558,"d":"349,319.59"}}]
[null,null,"Бюджет города",{"$f":"D50+D53+D56+D59+D67+D70+D73+D78","v":{"v":138121.21672,"d":"138,121.22"}},{"$f":"E50+E53+E56+E59+E67+E70+E73+E78","v":{"v":124381.61362,"d":"124,381.61"}}]
[null,null,"Областной бюджет",{"$f":"D60+D74+D79","v":{"v":252000,"d":"252,000.00"}},{"$f":"E60+E74+E79","v":{"v":224437.97196,"d":"224,437.97"}}]
[null,null,"Целевые средства",{"v":0,"d":"0.00"},{"$f":"E75","v":{"v":500,"d":"500.00"}}]
[null,null,"Целевой показатель 1. \nПротяженность содержания дорог местного значения (км) ",80,97]
[null,null,"Целевой показатель 7. \nПротяженность отремонтированных автомобильных дорог общего пользования местного значения (км)",2.7,2.7]
[null,null,"Целевой показатель 8. \nКоличество заключенных муниципальных контрактов на проведение экспертиз (государственных/негосударственных) (ед.)",0,1]
[null,null,"Целевой показатель 9. \nКоличество разработанных проектов ремонта, капитального ремонта, реконструкции автомобильных дорог (ед)",4,0]
[null,null,"Целевой показатель 14. \nКоличество участков автомобильных дорог, на которых выполнено восстановление и прокладка ливневой канализации (ед.)",0,1]
[null,"Основное мероприятие 3.1. Содержание и ремонт дорог местного значения. ","Всего",{"$f":"D50","v":{"v":91225.90692,"d":"91,225.91"}},{"$f":"E50","v":{"v":96771.99624,"d":"96,772.00"}}]
[null,null,"Бюджет города",{"v":91225.90692,"d":"91,225.91"},{"v":96771.99624,"d":"96,772.00"}]
[null,null,"Целевой показатель 1. \nПротяженность содержания дорог местного значения (км) ",80,97]
[null,"Основное мероприятие 3.5. Проведение экспертизы (государственной/негосударственной). ","Всего",{"$f":"D53","v":{"v":0,"d":"0.00"}},{"$f":"E53","v":{"v":393.65614,"d":"393.66"}}]
[null,null,"Бюджет города",{"v":0,"d":"0.00"},{"v":393.65614,"d":"393.66"}]
[null,null,"Целевой показатель 8. \nКоличество заключенных муниципальных контрактов на проведение экспертиз (государственных/негосударственных) (ед.)",0,1]
[null,"Основное мероприятие 3.6. Проектирование ремонта, капитального ремонта, реконструкции автомобильных дорог","Всего",{"$f":"D56","v":{"v":9324.43339,"d":"9,324.43"}},{"$f":"E56","v":{"v":0,"d":"0.00"}}]
[null,null,"Бюджет города",{"v":9324.43339,"d":"9,324.43"},{"v":0,"d":"0.00"}]
[null,null,"Целевой показатель 9. \nКоличество разработанных проектов ремонта, капитального ремонта, реконструкции автомобильных дорог (ед)",4,0]
[null,"Основное мероприятие 3.9. \"Мероприятия в рамках реализации регионального проекта \"Дорожная сеть\"","Всего",{"$f":"D59+D60","v":{"v":280898.87641,"d":"280,898.88"}},{"$f":"E59+E60","v":{"v":0,"d":"0.00"}}]
[null,null,"Бюджет города",{"v":30898.87641,"d":"30,898.88"},{"v":0,"d":"0.00"}]
[null,null,"Областной бюджет",{"v":250000,"d":"250,000.00"},{"v":0,"d":"0.00"}]
[null,null,"Целевой показатель 7. \nПротяженность отремонтированных автомобильных дорог общего пользования местного значения (км)",2.7,2.7]
[null,"3.9.1 \"Ремонт автомобильных дорог в рамках реализации национального проекта \"Безопасные качественные дороги\"","Всего",{"$f":"D63+D64","v":{"v":280898.87641,"d":"280,898.88"}},{"$f":"E63+E64","v":{"v":0,"d":"0.00"}}]
[null,null,"Бюджет города",{"v":30898.87641,"d":"30,898.88"},{"v":0,"d":"0.00"}]
[null,null,"Областной бюджет",{"v":250000,"d":"250,000.00"},{"v":0,"d":"0.00"}]
[null,null,"Значение целевого показателя относится к основному мероприятию 3.9. Протяженность отремонтированных автомобильных дорог общего пользования местного значения (км)","*","*"]
[null,"Основное мероприятие 3.10. Проектирование строительства автомобильных дорог","Всего",{"$f":"D67","v":{"v":6172,"d":"6,172.00"}},{"$f":"E67","v":{"v":0,"d":"0.00"}}]
[null,null,"Бюджет города",{"v":6172,"d":"6,172.00"},{"v":0,"d":"0.00"}]
[null,null,"Целевой показатель 12. \nКоличество разработанных проектов строительства автомобильных дорог (ед.)",0,0]
[null,"Основное мероприятие 3.12. \nВосстановление, прокладка и содержание ливневой канализации","Всего",{"$f":"D70","v":{"v":0,"d":"0.00"}},{"$f":"E70","v":{"v":1045,"d":"1,045.00"}}]
[null,null,"Бюджет города",{"v":0,"d":"0.00"},{"v":1045,"d":"1,045.00"}]
[null,null,"Целевой показатель 14. \nКоличество участков автомобильных дорог, на которых выполнено восстановление и прокладка ливневой канализации (ед.)",0,1]
[null,"Основное мероприятие 3.13. \nВосстановление, прокладка и содержание ливневой канализации","Всего",{"$f":"D73+D74+D75","v":{"v":2500,"d":"2,500.00"}},{"$f":"E73+E74+E75","v":{"v":2479.87196,"d":"2,479.87"}}]
[null,null,"Бюджет города",{"v":500,"d":"500.00"},{"v":0,"d":"0.00"}]
[null,null,"Областной бюджет",{"v":2000,"d":"2,000.00"},{"v":1979.87196,"d":"1,979.87"}]
[null,null,"Целевые средства",{"v":0,"d":"0.00"},{"v":500,"d":"500.00"}]
[null,null,"Значение целевого показателя относится к основному мероприятию 3.9. Протяженность отремонтированных автомобильных дорог общего пользования местного значения (км)","*","*"]
[null,"Основное мероприятие 3.14. «Развитие и приведение в нормативное состояние автомобильных дорог общего пользования местного значения, включающих искусственные дорожные сооружения, в рамках национального проекта «Инфраструктура для жизни»","Всего",{"$f":"D78+D79","v":{"v":0,"d":"0.00"}},{"$f":"E78+E79","v":{"v":248629.06124,"d":"248,629.06"}}]
[null,null,"Бюджет города",{"v":0,"d":"0.00"},{"v":26170.96124,"d":"26,170.96"}]
[null,null,"Областной бюджет",{"v":0,"d":"0.00"},{"v":222458.1,"d":"222,458.10"}]
[null,null,"Значение целевого показателя относится к основному мероприятию 3.9. Протяженность отремонтированных автомобильных дорог общего пользования местного значения (км)","*","*"]
[null,"Подпрограмма № 4 «Организация освещения улиц на территории города Усолье-Сибирское» на 2019-2027 годы","Всего",{"$f":"D82+D83","v":{"v":33015.325339999996,"d":"33,015.33"}},{"$f":"E82+E83","v":{"v":33332.33101,"d":"33,332.33"}}]
[null,null,"Бюджет города",{"$f":"D88+D100+D103+D106+D109","v":{"v":31328.18539,"d":"31,328.19"}},{"$f":"E88+E100+E103+E106+E109","v":{"v":32149.05537,"d":"32,149.06"}}]
[null,null,"Областной бюджет",{"$f":"D110","v":{"v":1687.13995,"d":"1,687.14"}},{"$f":"E110","v":{"v":1183.27564,"d":"1,183.28"}}]
[null,null,"Целевой показатель 1. \nПротяженность линий наружного освещения территории города (км) ",61.876,{"$f":"E89","v":82.576}]
[null,null,"Целевой показатель 2. \nКоличество разработанных технических заключений (ед)",1,0]
[null,null,"Целевой показатель 3. \nКоличество проведенных инвентаризаций объектов наружного освещения (ед)",1,0]
[null,"Основное мероприятие 4.1.                                   Содержание наружного освещения города Усолье – Сибирское","Всего",{"$f":"D88","v":{"v":27705.82734,"d":"27,705.83"}},{"$f":"E88","v":{"v":31832.737409999998,"d":"31,832.74"}}]
[null,null,"Бюджет города",{"$f":"D91+D94+D97","v":{"v":27705.82734,"d":"27,705.83"}},{"$f":"E91+E94+E97","v":{"v":31832.737409999998,"d":"31,832.74"}}]
[null,null,"Целевой показатель 1. \nПротяженность линий наружного освещения территории города (км) ",61.876,82.576]
[null,"Основное мероприятие 4.1.1. \nРасчет за потребленную электроэнергию","Всего",{"$f":"D91","v":{"v":10471.60275,"d":"10,471.60"}},{"$f":"E91","v":{"v":14766.20818,"d":"14,766.21"}}]
[null,null,"Бюджет города",{"v":10471.60275,"d":"10,471.60"},{"v":14766.20818,"d":"14,766.21"}]
[null,null,"Значение целевого показателя относится к основному мероприятию  4.1. Содержание наружного освещения города Усолье – Сибирское","*","*"]
[null,"Основное мероприятие 4.1.2. \nОбслуживание наружного освещения города Усолье-Сибирское","Всего",{"$f":"D94","v":{"v":12237.2142,"d":"12,237.21"}},{"$f":"E94","v":{"v":16239.17126,"d":"16,239.17"}}]
[null,null,"Бюджет города",{"v":12237.2142,"d":"12,237.21"},{"v":16239.17126,"d":"16,239.17"}]
[null,null,"Значение целевого показателя относится к основному мероприятию  4.1. Содержание наружного освещения города Усолье – Сибирское","*","*"]
[null,"Основное мероприятие 4.1.3. \nВосстановление и устройство наружного освещения города Усолье-Сибирское","Всего",{"$f":"D97","v":{"v":4997.01039,"d":"4,997.01"}},{"$f":"E97","v":{"v":827.35797,"d":"827.36"}}]
[null,null,"Бюджет города",{"v":4997.01039,"d":"4,997.01"},{"v":827.35797,"d":"827.36"}]
[null,null,"Значение целевого показателя относится к основному мероприятию  4.1. Содержание наружного освещения города Усолье – Сибирское","*","*"]
[null,"Основное мероприятие 4.4. Организация уличного освещения","Всего",{"$f":"D100","v":{"v":250,"d":"250.00"}},{"$f":"E100","v":{"v":199.29064,"d":"199.29"}}]
[null,null,"Бюджет города",{"v":250,"d":"250.00"},{"v":199.29064,"d":"199.29"}]
[null,null,"Значение целевого показателя относится к основному мероприятию  4.1. Содержание наружного освещения города Усолье – Сибирское","*","*"]
[null,"Основное мероприятие 4.5. Разработка технического заключения","Всего",{"$f":"D103","v":111.09},{"$f":"E103","v":{"v":0,"d":"0.00"}}]
[null,null,"Бюджет города",111.09,{"v":0,"d":"0.00"}]
[null,null,"Целевой показатель 2. \nКоличество разработанных технических заключений (ед)",1,0]
[null,"Основное мероприятие 4.6. Инвентаризация объектов наружного освещения","Всего",{"$f":"D106","v":{"v":3094.408,"d":"3,094.41"}},{"$f":"E106","v":{"v":0,"d":"0.00"}}]
[null,null,"Бюджет города",{"v":3094.408,"d":"3,094.41"},{"v":0,"d":"0.00"}]
[null,null,"Целевой показатель 3. \nКоличество проведенных инвентаризаций объектов наружного освещения (ед)",1,0]
[null,"Основное мероприятие 4.7 Организация уличного освещения (ул. Желябова; проход до ж/д перехода (ул. Ломоносова, ул. Тимирязева); от ул. Восточная до ул. Российская; ул. Уватова)","Всего",{"$f":"D109+D110","v":{"v":1854,"d":"1,854.00"}},{"$f":"E109+E110","v":{"v":1300.30296,"d":"1,300.30"}}]
[null,null,"Бюджет города",{"v":166.86005,"d":"166.86"},{"v":117.02732,"d":"117.03"}]
[null,null,"Областной бюджет",{"v":1687.13995,"d":"1,687.14"},{"v":1183.27564,"d":"1,183.28"}]
[null,null,"Значение целевого показателя относится к основному мероприятию  4.1. Содержание наружного освещения города Усолье – Сибирское","*","*"]
[null,"Подпрограмма № 5 «Энергосбережение и повышение энергетической эффективности города Усолье-Сибирское» на 2019-2027 годы","Всего",{"$f":"D113","v":{"v":240.8,"d":"240.80"}},{"$f":"E113","v":{"v":257.96674,"d":"257.97"}}]
[null,null,"Бюджет города",{"$f":"D122+D130+D133","v":{"v":240.8,"d":"240.80"}},{"$f":"E122+E130+E133","v":{"v":257.96674,"d":"257.97"}}]
[null,null,"Целевой показатель 1. \nДоля объемов электроэнергии, расчеты за которую осуществляются с использованием приборов учета (индивидуальных и общедомовых), в общем объеме электроэнергии, потребляемой многоквартирными домами в доле муниципальных жилых помещений, муниципального жилого фонда и муниципального специализированного фонда (%)",100,100]
[null,null,"Целевой показатель 2. \nДоля объемов тепловой энергии, расчеты за которую осуществляются с использованием приборов учета (индивидуальных и обще-домовых), в общем объеме тепловой энергии, потребляемой многоквартирными домами в доле муниципальных жилых помещений, муниципального жилого фонда и муниципального специализированного фонда (%)",100,100]
[null,null,"Целевой показатель 3. \nДоля объемов воды, расчеты за которую осуществляются с использованием приборов учета (индивидуальных и общедомовых), в общем объеме воды, потребляемой многоквартирными домами в доле муниципальных жилых помещений, муниципального жилого фонда и муниципального специализированного фонда (%)",100,100]
[null,null,"Целевой показатель 4. \nЭкономия потребления муниципальными бюджетными учреждениями  электроэнергии в натуральном выражении (тыс. кВт)",{"v":16300,"d":"16,300"},{"v":16300,"d":"16,300"}]
[null,null,"Целевой показатель 5. \nЭкономия потребления муниципальными бюджетными учреждениями тепловой энергии в натуральном выражении (Гкал)",190,190]
[null,null,"Целевой показатель 6. \nЭкономия потребления муниципальными бюджетными учреждениями питьевой воды в натуральном выражении (м³)",400,400]
[null,null,"Целевой показатель 7. Количество актуализированных и разработанных схем теплоснабжения, водоснабжения, водоотведения и ливневой канализации города Усолье-Сибирское (шт.)",0,1]
[null,"Основное мероприятие 5.1. Установка общедомовых приборов учета  энергоресурсов в городе Усолье-Сибирское и установка индивидуальных квартирных приборов учета  в муниципальном жилищном фонде.\n","Всего",{"$f":"D122","v":{"v":40.8,"d":"40.80"}},{"$f":"E122","v":{"v":57.968,"d":"57.97"}}]
[null,null,"Бюджет города",{"$f":"D127","v":{"v":40.8,"d":"40.80"}},{"$f":"E127","v":{"v":57.968,"d":"57.97"}}]
[null,null,"Целевой показатель 1. \nДоля объемов электроэнергии, расчеты за которую осуществляются с использованием приборов учета (индивидуальных и общедомовых), в общем объеме электроэнергии, потребляемой многоквартирными домами в доле муниципальных жилых помещений, муниципального жилого фонда и муниципального специализированного фонда (%)",100,100]
[null,null,"Целевой показатель 2. \nДоля объемов тепловой энергии, расчеты за которую осуществляются с использованием приборов учета (индивидуальных и обще-домовых), в общем объеме тепловой энергии, потребляемой многоквартирными домами в доле муниципальных жилых помещений, муниципального жилого фонда и муниципального специализированного фонда (%)",100,100]
[null,null,"Целевой показатель 3. \nДоля объемов воды, расчеты за которую осуществляются с использованием приборов учета (индивидуальных и общедомовых), в общем объеме воды, потребляемой многоквартирными домами в доле муниципальных жилых помещений, муниципального жилого фонда и муниципального специализированного фонда (%)",100,100]
[null,"Основное мероприятие 5.1.2. Установка индивидуальных квартирных приборов учета энергоресурсов в муниципальном жилищном фонде города Усолье-Сибирское","Всего",{"$f":"D127","v":{"v":40.8,"d":"40.80"}},{"$f":"E127","v":{"v":57.968,"d":"57.97"}}]
[null,null,"Бюджет города",{"v":40.8,"d":"40.80"},{"v":57.968,"d":"57.97"}]
[null,null,"Значение целевого показателя относится к основному мероприятию 5.1. Установка общедомовых приборов учета  энергоресурсов в городе Усолье-Сибирское и установка индивидуальных квартирных приборов учета  в муниципальном жилищном фонде.","*","*"]
[null,"Основное мероприятие 5.2. Актуализация и разработка схем  теплоснабжения, водоснабжения, водоотведения и ливневой канализации города Усолье-Сибирское.","Всего",{"$f":"D130","v":{"v":0,"d":"0.00"}},{"$f":"E130","v":{"v":0,"d":"0.00"}}]
[null,null,"Бюджет города",{"v":0,"d":"0.00"},{"v":0,"d":"0.00"}]
[null,null,"Целевой показатель 7. Количество актуализированных и разработанных схем теплоснабжения, водоснабжения, водоотведения и ливневой канализации города Усолье-Сибирское (шт.)",0,1]
[null,"Основное мероприятие 5.3. Проведение технических мероприятий  в бюджетной сфере города Усолье-Сибирское по реконструкции и капитальному ремонту  ограждающих конструкций, оконных и дверных  проемов, систем теплоснабжения, энергоснабжения,  водоснабжения и водоотведения. ","Всего",{"$f":"D133","v":{"v":200,"d":"200.00"}},{"$f":"E133","v":{"v":199.99874,"d":"200.00"}}]
[null,null,"Бюджет города",{"v":200,"d":"200.00"},{"v":199.99874,"d":"200.00"}]
[null,null,"Целевой показатель 4. \nЭкономия потребления муниципальными бюджетными учреждениями  электроэнергии в натуральном выражении (тыс. кВт)",{"v":16300,"d":"16,300"},{"v":16300,"d":"16,300"}]
[null,null,"Целевой показатель 5. \nЭкономия потребления муниципальными бюджетными учреждениями тепловой энергии в натуральном выражении (Гкал)",190,190]
[null,null,"Целевой показатель 6. \nЭкономия потребления муниципальными бюджетными учреждениями питьевой воды в натуральном выражении (м³)",400,400]
[null,"Подпрограмма № 6 «Благоустройство территории города Усолье-Сибирское» на 2019-2027 годы","Всего",{"$f":"D138+D139+D140","v":{"v":26749.66325,"d":"26,749.66"}},{"$f":"E138+E139+E140+E141","v":{"v":41895.52256,"d":"41,895.52"}}]
[null,null,"Бюджет города",{"$f":"D153+D159+D163+D166+D169+D182+D187+D192+D197+D201+D205+D209+D213+D217","v":{"v":10263.18315,"d":"10,263.18"}},{"$f":"E153+E159+E163+E166+E169+E182+E187+E192+E197+E201+E205+E209+E213+E217","v":{"v":17318.67321,"d":"17,318.67"}}]
[null,null,"Областной бюджет",{"$f":"D183+D188+D193+D198+D202+D206+D210+D214+D218","v":{"v":16486.4801,"d":"16,486.48"}},{"$f":"E183+E188+E193+E198+E202+E206+E210+E214+E218","v":{"v":14580.849349999999,"d":"14,580.85"}}]
[null,null,"Федеральный бюджет",{"$f":"D219","v":{"v":0,"d":"0.00"}},{"$f":"E219","v":{"v":9500,"d":"9,500.00"}}]
[null,null,"Целевые средства",{"v":0,"d":"0.00"},{"$f":"E184+E189+E194","v":{"v":496,"d":"496.00"}}]
[null,null,"Целевой показатель 2. \nСодержание городского мемориала памяти и памятников в городе Усолье-Сибирское (ед.)",1,1]
[null,null,"Целевой показатель 4. \nПлощадь обустроенных пешеходных дорожек (м2)",512,1113]
[null,null,"Целевой показатель 5. \nДоля отремонтированного детского игрового и спортивного оборудования, и иных малых архитектурных форм от выявленного количества (объема) необходимых для ремонта детского игрового и спортивного оборудования, и иных малых архитектурных форм (%)",100,100]
[null,null,"Целевой показатель 6. \nКоличество проведенных экспертиз (государственных/негосударственных) (ед.)",0,1]
[null,null,"Целевой показатель 13. \nДоля общественных территорий (парков, скверов и т.д.), содержание которых выполнено, от выявленного количества (объема) необходимых для содержания общественных территорий (парков, скверов и т.д.) (%) ",100,100]
[null,null,"Целевой показатель 21. \nКоличество инициативных проектов, реализованных на территории муниципального образования \"город Усолье-Сибирское\" (ед.)",3,3]
[null,null,"Целевой показатель 39. \nКоличество обустроенных футбольных полей (ед.)",1,1]
[null,null,"Целевой показатель 42. \nКоличество благоустроенных территорий (ед.)",1,1]
[null,null,"Целевой показатель 43. \nКоличество приобретенных и(или) установленныз стел, памятников, объектов архитектуры (ед.)",1,1]
[null,null,"Целевой показатель 44. \nКоличество мероприятий проекта \"Концепция туристического центра города Усолье-Сибирское\" (ед.)","-",13]
[null,"Основное мероприятие 6.2  Содержание городского мемориала памяти и памятников в городе Усолье-Сибирское","Всего",{"$f":"D153","v":{"v":1897.32216,"d":"1,897.32"}},{"$f":"E153","v":{"v":1523.3059,"d":"1,523.31"}}]
[null,null,"Бюджет города",{"$f":"D156","v":{"v":1897.32216,"d":"1,897.32"}},{"$f":"E156","v":{"v":1523.3059,"d":"1,523.31"}}]
[null,null,"Целевой показатель 2. \nСодержание городского мемориала памяти и памятников в городе Усолье-Сибирское (ед.)",1,1]
[null,"Основное мероприятие 6.2.1. Техническое обслуживание газового оборудования и поставка газа.","Всего",{"$f":"D156","v":{"v":1897.32216,"d":"1,897.32"}},{"$f":"E156","v":{"v":1523.3059,"d":"1,523.31"}}]
[null,null,"Бюджет города",{"v":1897.32216,"d":"1,897.32"},{"v":1523.3059,"d":"1,523.31"}]
[null,null,"Значение целевого показателя относится к основному мероприятию 6.2. Содержание городского мемориала памяти и памятников в городе Усолье-Сибирское","*","*"]
[null,"Основное мероприятие 6.4 Обустройство пешеходных дорожек","Всего",{"$f":"D159+D160","v":{"v":0,"d":"0.00"}},{"$f":"E159+E160","v":{"v":0,"d":"0.00"}}]
[null,null,"Бюджет города",{"v":0,"d":"0.00"},{"v":0,"d":"0.00"}]
[null,null,"Областной бюджет",{"v":0,"d":"0.00"},{"v":0,"d":"0.00"}]
[null,null,"Целевой показатель 4. \nПлощадь обустроенных пешеходных дорожек (м2)",512,1113]
[null,"Основное мероприятие 6.5. Содержание и ремонт детского игрового и спортивного оборудования и иных малых архитектурных форм","Всего",{"$f":"D163","v":{"v":911.22312,"d":"911.22"}},{"v":1143.36369,"d":"1,143.36"}]
[null,null,"Бюджет города",{"v":911.22312,"d":"911.22"},{"v":1143.36369,"d":"1,143.36"}]
[null,null,"Целевой показатель 5. \nДоля отремонтированного детского игрового и спортивного оборудования, и иных малых архитектурных форм от выявленного количества (объема) необходимых для ремонта детского игрового и спортивного оборудования, и иных малых архитектурных форм (%)",100,100]
[null,"Основное мероприятие 6.6.                                                                                 Проведение экспертизы (государственной/негосударственной) ","Всего",{"$f":"D166","v":{"v":0,"d":"0.00"}},{"v":76.8,"d":"76.80"}]
[null,null,"Бюджет города",{"v":0,"d":"0.00"},{"v":76.8,"d":"76.80"}]
[null,null,"Целевой показатель 6. \nКоличество проведенных экспертиз (государственных/негосударственных) (ед.)",0,1]
[null,"Основное мероприятие 6.18. Содержание общественных территорий (парки, скверы и т.д.)","Всего",{"$f":"D169","v":{"v":5769.601159999999,"d":"5,769.60"}},{"$f":"E169","v":{"v":12600.49498,"d":"12,600.49"}}]
[null,null,"Бюджет города",{"$f":"D172+D175","v":{"v":5769.601159999999,"d":"5,769.60"}},{"$f":"E172+E175","v":{"v":12600.49498,"d":"12,600.49"}}]
[null,null,"Целевой показатель 13. \nДоля общественных территорий (парков, скверов и т.д.), содержание которых выполнено, от выявленного количества (объема) необходимых для содержания общественных территорий (парков, скверов и т.д.) (%) ",100,100]
[null,"Основное мероприятие 6.18.1. Содержание общественных территорий (зимнее/летнее)","Всего",{"$f":"D172","v":{"v":5271.70116,"d":"5,271.70"}},{"$f":"E172","v":{"v":11314.49498,"d":"11,314.49"}}]
[null,null,"Бюджет города",{"v":5271.70116,"d":"5,271.70"},{"v":11314.49498,"d":"11,314.49"}]
[null,null,"Значение целевого показателя относится к основному мероприятию 6.18. Содержание общественных территорий (парки, скверы и т.д.)","*","*"]
[null,"Основное мероприятие 6.18.2. Установка и техническое обслуживание систем видеонаблюдения","Всего",{"$f":"D175","v":{"v":497.9,"d":"497.90"}},{"$f":"E175","v":{"v":1286,"d":"1,286.00"}}]
[null,null,"Бюджет города",{"v":497.9,"d":"497.90"},{"v":1286,"d":"1,286.00"}]
[null,null,"Значение целевого показателя относится к основному мероприятию 6.18. Содержание общественных территорий (парки, скверы и т.д.)","*","*"]
[null,"Основное мероприятие 6.21. «Благоустройство территории в районе многоквартирных жилых домов №№ 58, 60 по пр-кту Ленинский г. Усолье-Сибирское»","Всего",{"$f":"D178+D179","v":{"v":0,"d":"0.00"}},{"$f":"E178+E179","v":{"v":0,"d":"0.00"}}]
[null,null,"Бюджет города",{"v":0,"d":"0.00"},{"v":0,"d":"0.00"}]
[null,null,"Областной бюджет",{"v":0,"d":"0.00"},{"v":0,"d":"0.00"}]
[null,null,"Целевой показатель 21. \nКоличество инициативных проектов, реализованных на территории муниципального образования \"город Усолье-Сибирское\" (ед.)",3,3]
[null,"Основное мероприятие 6.36. «Благоустройство территории в районе многоквартирных жилых домов №№ 58, 60 по пр-кту Ленинский г. Усолье-Сибирское»","Всего",{"$f":"D182+D183","v":{"v":1760,"d":"1,760.00"}},{"$f":"E182+E183+E184","v":{"v":1672.66621,"d":"1,672.67"}}]
[null,null,"Бюджет города",{"v":176,"d":"176.00"},{"v":0,"d":"0.00"}]
[null,null,"Областной бюджет",{"v":1584,"d":"1,584.00"},{"v":1496.66621,"d":"1,496.67"}]
[null,null,"Целевые средства",{"v":0,"d":"0.00"},{"v":176,"d":"176.00"}]
[null,null,"Значение целевого показателя относится к основному мероприятию 6.21. Реализация инициативных проектов на территории муниципального образования \"город Усолье-Сибирское\"","*","*"]
[null,"Основное мероприятие 6.37. «Благоустройство дворовой территории жилых домов № 35, 29, 32, 34 по пр-кту Химиков»","Всего",{"$f":"D187+D188","v":{"v":1200,"d":"1,200.00"}},{"$f":"E187+E188+E189","v":{"v":1200,"d":"1,200.00"}}]
[null,null,"Бюджет города",{"v":120,"d":"120.00"},{"v":0,"d":"0.00"}]
[null,null,"Областной бюджет",{"v":1080,"d":"1,080.00"},{"v":1080,"d":"1,080.00"}]
[null,null,"Целевые средства",{"v":0,"d":"0.00"},{"v":120,"d":"120.00"}]
[null,null,"Значение целевого показателя относится к основному мероприятию 6.21. Реализация инициативных проектов на территории муниципального образования \"город Усолье-Сибирское\"","*","*"]
[null,"Основное мероприятие 6.38. «Благоустройство территории в районе ж/д перехода на перекрестке ул. Буйволовой и ул. Жуковского»","Всего",{"$f":"D192+D193","v":{"v":2000,"d":"2,000.00"}},{"$f":"E192+E193+E194","v":{"v":1904.30911,"d":"1,904.31"}}]
[null,null,"Бюджет города",{"v":200,"d":"200.00"},{"v":0,"d":"0.00"}]
[null,null,"Областной бюджет",{"v":1800,"d":"1,800.00"},{"v":1704.30911,"d":"1,704.31"}]
[null,null,"Целевые средства",{"v":0,"d":"0.00"},{"v":200,"d":"200.00"}]
[null,null,"Значение целевого показателя относится к основному мероприятию 6.21. Реализация инициативных проектов на территории муниципального образования \"город Усолье-Сибирское\"","*","*"]
[null,"Основное мероприятие 6.39 Обустройство футбольного поля по ул. Толбухина, 5","Всего",{"$f":"D197+D198","v":{"v":1500,"d":"1,500.00"}},{"$f":"E197+E198","v":{"v":1300.5175000000002,"d":"1,300.52"}}]
[null,null,"Бюджет города",{"v":135.00004,"d":"135.00"},{"v":117.04661,"d":"117.05"}]
[null,null,"Областной бюджет",{"v":1364.99996,"d":"1,365.00"},{"v":1183.47089,"d":"1,183.47"}]
[null,null,"Целевой показатель 39. \nКоличество обустроенных футбольных полей (ед.)",1,1]
[null,"Основное мероприятие 6.40 Устройство пешеходной дорожки вдоль дома № 76 по ул. Молотовая и дома № 89 по ул. Интернациональная","Всего",{"$f":"D201+D202","v":{"v":1500,"d":"1,500.00"}},{"$f":"E201+E202","v":{"v":1038.01128,"d":"1,038.01"}}]
[null,null,"Бюджет города",{"v":135.00004,"d":"135.00"},{"v":93.42105,"d":"93.42"}]
[null,null,"Областной бюджет",{"v":1364.99996,"d":"1,365.00"},{"v":944.59023,"d":"944.59"}]
[null,null,"Значение целевого показателя относится к основному мероприятию 6.4. Обустройство пешеходных дорожек","*","*"]
[null,"Основное мероприятие 6.41 Устройство пешеходной дорожки от перекрестка ул. Попова по ул. Жуковского до перекрестка с ул. Энергетиков","Всего",{"$f":"D205+D206","v":{"v":4000.0000099999997,"d":"4,000.00"}},{"$f":"E205+E206","v":{"v":3320,"d":"3,320.00"}}]
[null,null,"Бюджет города",{"v":360.00011,"d":"360.00"},{"v":298.8001,"d":"298.80"}]
[null,null,"Областной бюджет",{"v":3639.9999,"d":"3,640.00"},{"v":3021.1999,"d":"3,021.20"}]
[null,null,"Значение целевого показателя относится к основному мероприятию 6.4. Обустройство пешеходных дорожек","*","*"]
[null,"Основное мероприятие 6.42 Благоустройство соляного источника на о. Варничный","Всего",{"$f":"D209+D210","v":{"v":3500,"d":"3,500.00"}},{"$f":"E209+E210","v":{"v":3253.17488,"d":"3,253.17"}}]
[null,null,"Бюджет города",{"v":315.0001,"d":"315.00"},{"v":292.78583,"d":"292.79"}]
[null,null,"Областной бюджет",{"v":3184.9999,"d":"3,185.00"},{"v":2960.38905,"d":"2,960.39"}]
[null,null,"Целевой показатель 42. \nКоличество благоустроенных территорий (ед.)",1,1]
[null,"Основное мероприятие 6.43 Приобретение и установка стелы на въезде в город","Всего",{"$f":"D213+D214","v":{"v":2711.5168,"d":"2,711.52"}},{"$f":"E213+E214","v":{"v":1857.38903,"d":"1,857.39"}}]
[null,null,"Бюджет города",{"v":244.03642,"d":"244.04"},{"v":167.16507,"d":"167.17"}]
[null,null,"Областной бюджет",{"v":2467.48038,"d":"2,467.48"},{"v":1690.22396,"d":"1,690.22"}]
[null,null,"Целевой показатель 43. \nКоличество приобретенных и(или) установленныз стел, памятников, объектов архитектуры (ед.)",1,1]
[null,"Основное мероприятие 6.44. «Реализация мероприятий проекта \"Концепция туристического центра города Усолье-Сибирское»","Всего",{"$f":"D217+D218","v":{"v":0,"d":"0.00"}},{"$f":"E217+E218+E219","v":{"v":11005.48998,"d":"11,005.49"}}]
[null,null,"Бюджет города",{"v":0,"d":"0.00"},{"$f":"(1000569.98+4920)/1000","v":{"v":1005.48998,"d":"1,005.49"}}]
[null,null,"Областной бюджет",{"v":0,"d":"0.00"},{"v":500,"d":"500.00"}]
[null,null,"Федеральный бюджет",{"v":0,"d":"0.00"},{"v":9500,"d":"9,500.00"}]
[null,null,"Целевой показатель 44. \nКоличество мероприятий проекта \"Концепция туристического центра города Усолье-Сибирское\" (ед.)","-",13]
[null,"Подпрограмма № 8 «Развитие и модернизация объектов водоснабжения, водоотведения и очистки сточных вод\" на 2020-2025 годы","Всего",{"$f":"D222+D223","v":{"v":8429.754280000001,"d":"8,429.75"}},{"$f":"E222+E223","v":{"v":0,"d":"0.00"}}]
[null,null,"Бюджет города",{"$f":"D229+D233+D240+D237","v":{"v":8429.754280000001,"d":"8,429.75"}},{"$f":"E229+E233+E240+E237","v":{"v":0,"d":"0.00"}}]
[null,null,"Областной бюджет",{"$f":"D230+D234","v":{"v":0,"d":"0.00"}},{"$f":"E230+E234","v":{"v":0,"d":"0.00"}}]
[null,null,"Целевой показатель 1. \nКоличество разработанной проектной документации по объекту \"Строительство канализационных очистных сооружений на территории города Усолье-Сибирское\" (ед.)",1,{"$f":"E231","v":0}]
[null,null,"Целевой показатель 2. \nКоличество разработанной проектной документации по объекту \"Строительство сетей водоснабжения на территории города Усолье-Сибирское\" (ед.)",1,{"$f":"E235","v":0}]
[null,null,"Целевой показатель 4. \nКоличество канализационных очистных сооружений, построенных на территории города Усолье-Сибирское (ед.)",1,0]
[null,null,"Целевой показатель 6. \nДоля исполненных мероприятий по приобретению материалов и оборудования (%)",100,0]
[null,"Основное мероприятие 8.1. \nРазработка проектной документации по объекту \"Строительство канализационных очистных сооружений на территории города Усолье-Сибирское\"","Всего",{"$f":"D229+D230","v":{"v":3224.49428,"d":"3,224.49"}},{"$f":"E229+E230","v":{"v":0,"d":"0.00"}}]
[null,null,"Бюджет города",{"v":3224.49428,"d":"3,224.49"},{"v":0,"d":"0.00"}]
[null,null,"Областной бюджет",{"v":0,"d":"0.00"},{"v":0,"d":"0.00"}]
[null,null,"Целевой показатель 1. \nКоличество разработанной проектной документации по объекту \"Строительство канализационных очистных сооружений на территории города Усолье-Сибирское\" (ед.)",1,0]
[null,"Основное мероприятие 8.2. \nРазработка проектной документации по объекту \"Строительство сетей водоснабжения на территории города Усолье-Сибирское\"","Всего",{"$f":"D233+D234","v":{"v":1500,"d":"1,500.00"}},{"$f":"E233+E234","v":{"v":0,"d":"0.00"}}]
[null,null,"Бюджет города",{"v":1500,"d":"1,500.00"},{"v":0,"d":"0.00"}]
[null,null,"Областной бюджет",{"v":0,"d":"0.00"},{"v":0,"d":"0.00"}]
[null,null,"Целевой показатель 2. \nКоличество разработанной проектной документации по объекту \"Строительство сетей водоснабжения на территории города Усолье-Сибирское\" (ед.)",1,0]
[null,"Основное мероприятие 8.4. \nСтроительство объекта \"Строительство канализационных очистных сооружений на территории города Усолье-Сибирское\"","Всего",{"$f":"D237","v":{"v":3600.76,"d":"3,600.76"}},{"$f":"E237","v":{"v":0,"d":"0.00"}}]
[null,null,"Бюджет города",{"v":3600.76,"d":"3,600.76"},{"v":0,"d":"0.00"}]
[null,null,"Целевой показатель 4. \nКоличество канализационных очистных сооружений, построенных на территории города Усолье-Сибирское (ед.)",1,0]
[null,"Основное мероприятие 8.6. \nПриобретение материалов и оборудования","Всего",{"$f":"D240","v":{"v":104.5,"d":"104.50"}},{"$f":"E240","v":{"v":0,"d":"0.00"}}]
[null,null,"Бюджет города",{"v":104.5,"d":"104.50"},{"v":0,"d":"0.00"}]
[null,null,"Целевой показатель 6. \nДоля исполненных мероприятий по приобретению материалов и оборудования (%)",100,0]
[]
[]
[]
[null,"Мэр города Усолье-Сибирское                                                                                ",null," М.В. Торопкин"]